[Event "January 2 Early 2024"]
[Site "https://www.chess.com"]
[Date "2024.01.02"]
[Round "5"]
[White "Maltsevskaya, Aleksandra"]
[Black "Ovezdurdyyeva, Jemal"]
[Result "0-1"]
[Board "108"]
[TimeControl "180+1"]
[WhiteFideId "24174041"]
[BlackFideId "14001888"]
[WhiteElo "2601"]
[BlackElo "2410"]
[WhiteTeam "POL"]
[BlackTeam "TKM"]
[WhiteClock "0:00:00"]
[BlackClock "0:00:06"]

1. Nf3 {[%clk 0:02:24]}  Nf6 {[%clk 0:02:58]} 2. g3 {[%clk 0:02:25]}  g6 {[%clk 0:02:58]} 3. Bg2 {[%clk 0:02:22]}  Bg7 {[%clk 0:02:59]} 4. O-O {[%clk 0:02:23]}  O-O {[%clk 0:02:59]} 5. d3 {[%clk 0:02:23]}  d5 {[%clk 0:02:58]} 6. Nbd2 {[%clk 0:02:23]}  c5 {[%clk 0:02:57]} 7. e4 {[%clk 0:02:23]}  Nc6 {[%clk 0:02:56]} 8. exd5 {[%clk 0:02:24]}  Nxd5 {[%clk 0:02:56]} 9. Nc4 {[%clk 0:02:25]}  Bg4 {[%clk 0:02:55]} 10. h3 {[%clk 0:02:24]}  Be6 {[%clk 0:02:53]} 11. Ng5 {[%clk 0:02:23]}  Bc8 {[%clk 0:02:50]} 12. a4 {[%clk 0:02:18]}  h6 {[%clk 0:02:48]} 13. Ne4 {[%clk 0:02:15]}  b6 {[%clk 0:02:42]} 14. c3 {[%clk 0:02:09]}  Be6 {[%clk 0:02:38]} 15. a5 {[%clk 0:02:07]}  b5 {[%clk 0:02:34]} 16. Ne3 {[%clk 0:02:06]}  c4 {[%clk 0:01:58]} 17. Nc5 {[%clk 0:01:20]}  Nxe3 {[%clk 0:01:53]} 18. Nxe6 {[%clk 0:01:07]}  fxe6 {[%clk 0:01:07]} 19. Bxe3 {[%clk 0:01:06]}  Rc8 {[%clk 0:01:02]} 20. Qg4 {[%clk 0:01:03]}  Rf6 {[%clk 0:00:53]} 21. dxc4 {[%clk 0:00:50]}  Ne5 {[%clk 0:00:53]} 22. Qe2 {[%clk 0:00:41]}  Nxc4 {[%clk 0:00:49]} 23. Bxa7 {[%clk 0:00:41]}  Qc7 {[%clk 0:00:27]} 24. Be3 {[%clk 0:00:33]}  Nxa5 {[%clk 0:00:17]} 25. Bd4 {[%clk 0:00:26]}  Rf7 {[%clk 0:00:15]} 26. Bxg7 {[%clk 0:00:25]}  Kxg7 {[%clk 0:00:14]} 27. Qxb5 {[%clk 0:00:18]}  Nc4 {[%clk 0:00:14]} 28. b4 {[%clk 0:00:14]}  Nd6 {[%clk 0:00:13]} 29. Qe2 {[%clk 0:00:13]}  Qxc3 {[%clk 0:00:14]} 30. b5 {[%clk 0:00:13]}  Rb8 {[%clk 0:00:14]} 31. Rab1 {[%clk 0:00:11]}  Rb6 {[%clk 0:00:14]} 32. Qxe6 {[%clk 0:00:10]}  Qc7 {[%clk 0:00:12]} 33. Bd5 {[%clk 0:00:09]}  Rf8 {[%clk 0:00:11]} 34. Qe5+ {[%clk 0:00:09]}  Kh7 {[%clk 0:00:11]} 35. Rfe1 {[%clk 0:00:08]}  Rxb5 {[%clk 0:00:03]} 36. Qxe7+ {[%clk 0:00:08]}  Qxe7 {[%clk 0:00:04]} 37. Rxe7+ {[%clk 0:00:08]}  Kh8 {[%clk 0:00:05]} 38. Rxb5 {[%clk 0:00:08]}  Nxb5 {[%clk 0:00:05]} 39. Be4 {[%clk 0:00:08]}  Rf6 {[%clk 0:00:03]} 40. Kg2 {[%clk 0:00:07]}  Nd6 {[%clk 0:00:03]} 41. Bc2 {[%clk 0:00:07]}  Nf5 {[%clk 0:00:04]} 42. Bxf5 {[%clk 0:00:06]}  Rxf5 {[%clk 0:00:05]} 43. f4 {[%clk 0:00:06]}  Rf6 {[%clk 0:00:05]} 44. Kf3 {[%clk 0:00:05]}  Kg8 {[%clk 0:00:06]} 45. h4 {[%clk 0:00:05]}  Kf8 {[%clk 0:00:06]} 46. Rb7 {[%clk 0:00:04]}  Rb6 {[%clk 0:00:07]} 47. Kg4 {[%clk 0:00:00]}  Rxb7 {[%clk 0:00:06]} 0-1

[Event "January 2 Early 2024"]
[Site "https://www.chess.com"]
[Date "2024.01.02"]
[Round "5"]
[White "Aswath, S"]
[Black "Mohammed, Zozek Salah Mohammed"]
[Result "1-0"]
[Board "110"]
[TimeControl "180+1"]
[WhiteFideId "46694919"]
[BlackFideId "4803361"]
[WhiteElo "2584"]
[BlackElo "2406"]
[WhiteTeam "IND"]
[BlackTeam "IRQ"]
[WhiteClock "0:02:26"]
[BlackClock "0:01:52"]

1. c4 {[%clk 0:03:00]}  e5 {[%clk 0:02:53]} 2. g3 {[%clk 0:03:00]}  Nf6 {[%clk 0:02:53]} 3. Bg2 {[%clk 0:03:00]}  Bc5 {[%clk 0:02:51]} 4. Nc3 {[%clk 0:02:58]}  O-O {[%clk 0:02:51]} 5. Nf3 {[%clk 0:02:55]}  Nc6 {[%clk 0:02:44]} 6. d3 {[%clk 0:02:54]}  d5 {[%clk 0:02:42]} 7. cxd5 {[%clk 0:02:51]}  Nxd5 {[%clk 0:02:43]} 8. O-O {[%clk 0:02:51]}  Nxc3 {[%clk 0:02:39]} 9. bxc3 {[%clk 0:02:52]}  Be6 {[%clk 0:02:36]} 10. Ng5 {[%clk 0:02:50]}  Bd5 {[%clk 0:02:35]} 11. e4 {[%clk 0:02:49]}  Be6 {[%clk 0:02:33]} 12. Qh5 {[%clk 0:02:41]}  h6 {[%clk 0:02:07]} 13. Nxe6 {[%clk 0:02:29]}  fxe6 {[%clk 0:02:08]} 14. d4 {[%clk 0:02:28]}  exd4 {[%clk 0:01:52]} 15. Qxc5 {[%clk 0:02:26]} 1-0

[Event "January 2 Early 2024"]
[Site "https://www.chess.com"]
[Date "2024.01.02"]
[Round "5"]
[White "Grave, Jacob Templen"]
[Black "Aggelis, Nikolaos"]
[Result "0-1"]
[Board "111"]
[TimeControl "180+1"]
[WhiteFideId "1542656"]
[BlackFideId "4213220"]
[WhiteElo "2405"]
[BlackElo "2578"]
[WhiteTeam "NOR"]
[BlackTeam "GRE"]
[WhiteClock "0:00:02"]
[BlackClock "0:00:55"]

1. d4 {[%clk 0:01:43]}  f5 {[%clk 0:02:57]} 2. Nc3 {[%clk 0:01:36]}  Nf6 {[%clk 0:02:56]} 3. Bg5 {[%clk 0:01:36]}  d5 {[%clk 0:02:57]} 4. Bxf6 {[%clk 0:01:37]}  exf6 {[%clk 0:02:57]} 5. e3 {[%clk 0:01:37]}  c6 {[%clk 0:02:57]} 6. Bd3 {[%clk 0:01:37]}  Be6 {[%clk 0:02:50]} 7. Qf3 {[%clk 0:01:36]}  g6 {[%clk 0:02:50]} 8. Nge2 {[%clk 0:01:35]}  Bd6 {[%clk 0:02:45]} 9. h4 {[%clk 0:01:32]}  Nd7 {[%clk 0:02:44]} 10. h5 {[%clk 0:01:28]}  Kf7 {[%clk 0:02:17]} 11. hxg6+ {[%clk 0:01:18]}  hxg6 {[%clk 0:02:18]} 12. O-O-O {[%clk 0:01:18]}  Qc7 {[%clk 0:02:06]} 13. g3 {[%clk 0:01:06]}  Kg7 {[%clk 0:02:04]} 14. Nf4 {[%clk 0:00:58]}  Bxf4 {[%clk 0:02:04]} 15. gxf4 {[%clk 0:00:56]}  Rxh1 {[%clk 0:02:04]} 16. Rxh1 {[%clk 0:00:54]}  Rh8 {[%clk 0:02:04]} 17. Rg1 {[%clk 0:00:53]}  Rh6 {[%clk 0:01:55]} 18. Ne2 {[%clk 0:00:51]}  Nf8 {[%clk 0:01:48]} 19. Ng3 {[%clk 0:00:50]}  Kf7 {[%clk 0:01:46]} 20. Qg2 {[%clk 0:00:48]}  Ke8 {[%clk 0:01:40]} 21. Kb1 {[%clk 0:00:41]}  Qh7 {[%clk 0:01:40]} 22. a3 {[%clk 0:00:41]}  Rh2 {[%clk 0:01:39]} 23. Qf3 {[%clk 0:00:41]}  Nd7 {[%clk 0:01:27]} 24. Nf1 {[%clk 0:00:36]}  Rh3 {[%clk 0:01:25]} 25. Qg2 {[%clk 0:00:36]}  Rh6 {[%clk 0:01:25]} 26. Nd2 {[%clk 0:00:33]}  Nb6 {[%clk 0:01:24]} 27. b3 {[%clk 0:00:33]}  Nc8 {[%clk 0:01:24]} 28. Kb2 {[%clk 0:00:33]}  Nd6 {[%clk 0:01:24]} 29. c4 {[%clk 0:00:33]}  Ne4 {[%clk 0:01:24]} 30. Bxe4 {[%clk 0:00:31]}  fxe4 {[%clk 0:01:19]} 31. Qg3 {[%clk 0:00:29]}  Bf5 {[%clk 0:01:14]} 32. cxd5 {[%clk 0:00:28]}  cxd5 {[%clk 0:01:15]} 33. Rc1 {[%clk 0:00:27]}  Rh1 {[%clk 0:01:11]} 34. Rc5 {[%clk 0:00:20]}  Rd1 {[%clk 0:01:00]} 35. Rc2 {[%clk 0:00:13]}  Qh1 {[%clk 0:01:00]} 36. b4 {[%clk 0:00:09]}  Rg1 {[%clk 0:00:55]} 37. Qg2 {[%clk 0:00:02]} 0-1

[Event "January 2 Early 2024"]
[Site "https://www.chess.com"]
[Date "2024.01.02"]
[Round "5"]
[White "Andersson, Bjorn 1960"]
[Black "AmanteDeMoi"]
[Result "0-1"]
[Board "113"]
[TimeControl "180+1"]
[WhiteFideId "1700545"]
[WhiteElo "2385"]
[BlackElo "2566"]
[WhiteTeam "SWE"]
[WhiteClock "0:00:00"]
[BlackClock "0:01:03"]

1. e4 {[%clk 0:03:00]}  g6 {[%clk 0:02:51]} 2. d4 {[%clk 0:03:00]}  Bg7 {[%clk 0:02:52]} 3. Nc3 {[%clk 0:03:00]}  c6 {[%clk 0:02:48]} 4. Nf3 {[%clk 0:02:56]}  d5 {[%clk 0:02:48]} 5. Be3 {[%clk 0:02:43]}  dxe4 {[%clk 0:02:47]} 6. Nxe4 {[%clk 0:02:44]}  Nd7 {[%clk 0:02:46]} 7. Bc4 {[%clk 0:02:34]}  Ngf6 {[%clk 0:02:41]} 8. Neg5 {[%clk 0:01:57]}  O-O {[%clk 0:02:40]} 9. Nxf7 {[%clk 0:01:54]}  Rxf7 {[%clk 0:02:40]} 10. Ng5 {[%clk 0:01:53]}  Nd5 {[%clk 0:02:37]} 11. Nxf7 {[%clk 0:01:43]}  Kxf7 {[%clk 0:02:38]} 12. Qf3+ {[%clk 0:01:42]}  Nf6 {[%clk 0:02:38]} 13. h4 {[%clk 0:01:38]}  Bg4 {[%clk 0:02:38]} 14. Qg3 {[%clk 0:01:37]}  Qd6 {[%clk 0:02:29]} 15. Qxd6 {[%clk 0:01:22]}  exd6 {[%clk 0:02:29]} 16. f3 {[%clk 0:01:20]}  Be6 {[%clk 0:02:29]} 17. Bd2 {[%clk 0:01:13]}  Re8 {[%clk 0:02:26]} 18. Kf2 {[%clk 0:01:06]}  Nh5 {[%clk 0:02:19]} 19. c3 {[%clk 0:01:03]}  Ndf4 {[%clk 0:02:18]} 20. Bf1 {[%clk 0:00:47]}  Nd5 {[%clk 0:02:13]} 21. Bc4 {[%clk 0:00:41]}  Nb6 {[%clk 0:02:12]} 22. Bxe6+ {[%clk 0:00:34]}  Rxe6 {[%clk 0:02:09]} 23. Rae1 {[%clk 0:00:35]}  Nf6 {[%clk 0:02:07]} 24. g4 {[%clk 0:00:31]}  Nc4 {[%clk 0:01:53]} 25. Bc1 {[%clk 0:00:31]}  Nd5 {[%clk 0:01:35]} 26. Rxe6 {[%clk 0:00:27]}  Kxe6 {[%clk 0:01:36]} 27. h5 {[%clk 0:00:27]}  Kf7 {[%clk 0:01:29]} 28. hxg6+ {[%clk 0:00:27]}  hxg6 {[%clk 0:01:30]} 29. Rh7 {[%clk 0:00:25]}  Nf6 {[%clk 0:01:30]} 30. Rh1 {[%clk 0:00:23]}  Kg8 {[%clk 0:01:29]} 31. Re1 {[%clk 0:00:18]}  Kf7 {[%clk 0:01:29]} 32. b3 {[%clk 0:00:17]}  Nb6 {[%clk 0:01:29]} 33. Bd2 {[%clk 0:00:17]}  Nc8 {[%clk 0:01:28]} 34. Kg3 {[%clk 0:00:16]}  Ne7 {[%clk 0:01:28]} 35. Rh1 {[%clk 0:00:11]}  b6 {[%clk 0:01:24]} 36. a4 {[%clk 0:00:07]}  a6 {[%clk 0:01:21]} 37. Re1 {[%clk 0:00:06]}  Nfd5 {[%clk 0:01:19]} 38. Re2 {[%clk 0:00:06]}  Ng8 {[%clk 0:01:18]} 39. Re1 {[%clk 0:00:06]}  Ngf6 {[%clk 0:01:16]} 40. Re2 {[%clk 0:00:06]}  Ne8 {[%clk 0:01:16]} 41. Re1 {[%clk 0:00:07]}  Nec7 {[%clk 0:01:17]} 42. Re2 {[%clk 0:00:04]}  Ne6 {[%clk 0:01:17]} 43. Re1 {[%clk 0:00:03]}  b5 {[%clk 0:01:17]} 44. axb5 {[%clk 0:00:03]}  axb5 {[%clk 0:01:18]} 45. Ra1 {[%clk 0:00:03]}  b4 {[%clk 0:01:15]} 46. Ra7+ {[%clk 0:00:04]}  Ne7 {[%clk 0:01:16]} 47. c4 {[%clk 0:00:02]}  Bxd4 {[%clk 0:01:16]} 48. Rb7 {[%clk 0:00:03]}  c5 {[%clk 0:01:15]} 49. f4 {[%clk 0:00:03]}  Nd8 {[%clk 0:01:10]} 50. Rd7 {[%clk 0:00:02]}  Nc6 {[%clk 0:01:04]} 51. Rxd6 {[%clk 0:00:02]}  Bc3 {[%clk 0:01:03]} 52. Bxc3 {[%clk 0:00:02]}  bxc3 {[%clk 0:01:04]} 53. Rd3 {[%clk 0:00:00]}  Nd4 {[%clk 0:01:03]} 0-1

[Event "January 2 Early 2024"]
[Site "https://www.chess.com"]
[Date "2024.01.02"]
[Round "5"]
[White "Legenia, Artem"]
[Black "Korchynskyi, Mykola"]
[Result "0-1"]
[Board "114"]
[TimeControl "180+1"]
[WhiteFideId "14136945"]
[BlackFideId "34138005"]
[WhiteElo "2372"]
[BlackElo "2561"]
[WhiteTeam "UKR"]
[BlackTeam "UKR"]
[WhiteClock "0:00:17"]
[BlackClock "0:00:10"]

1. d4 {[%clk 0:03:00]}  d5 {[%clk 0:02:40]} 2. c4 {[%clk 0:02:58]}  e6 {[%clk 0:02:39]} 3. Nf3 {[%clk 0:02:59]}  Nf6 {[%clk 0:02:37]} 4. Nc3 {[%clk 0:02:59]}  Be7 {[%clk 0:02:37]} 5. Bg5 {[%clk 0:02:59]}  O-O {[%clk 0:02:36]} 6. Bxf6 {[%clk 0:02:59]}  Bxf6 {[%clk 0:02:35]} 7. e3 {[%clk 0:03:00]}  b6 {[%clk 0:02:34]} 8. Bd3 {[%clk 0:03:00]}  dxc4 {[%clk 0:02:33]} 9. Bxc4 {[%clk 0:03:00]}  Bb7 {[%clk 0:02:34]} 10. O-O {[%clk 0:03:00]}  Nd7 {[%clk 0:02:35]} 11. e4 {[%clk 0:02:57]}  c5 {[%clk 0:02:33]} 12. d5 {[%clk 0:02:57]}  Bxc3 {[%clk 0:02:31]} 13. bxc3 {[%clk 0:02:57]}  exd5 {[%clk 0:02:32]} 14. Bxd5 {[%clk 0:02:57]}  Bxd5 {[%clk 0:02:32]} 15. Qxd5 {[%clk 0:02:57]}  Nf6 {[%clk 0:02:32]} 16. Qc4 {[%clk 0:02:55]}  Qe7 {[%clk 0:02:29]} 17. e5 {[%clk 0:02:52]}  Nd7 {[%clk 0:02:29]} 18. Rfe1 {[%clk 0:02:52]}  Rae8 {[%clk 0:02:29]} 19. h3 {[%clk 0:02:45]}  Nb8 {[%clk 0:02:28]} 20. Rad1 {[%clk 0:02:40]}  h6 {[%clk 0:02:26]} 21. a4 {[%clk 0:02:36]}  Qe6 {[%clk 0:02:21]} 22. Qb5 {[%clk 0:02:27]}  Re7 {[%clk 0:02:02]} 23. a5 {[%clk 0:02:25]}  bxa5 {[%clk 0:01:57]} 24. Qxc5 {[%clk 0:02:17]}  a4 {[%clk 0:01:46]} 25. Nd4 {[%clk 0:02:13]}  Qd7 {[%clk 0:01:30]} 26. Nf5 {[%clk 0:02:09]}  Qxf5 {[%clk 0:01:30]} 27. Qxe7 {[%clk 0:02:08]}  Nc6 {[%clk 0:01:26]} 28. Qc5 {[%clk 0:02:06]}  Rc8 {[%clk 0:01:25]} 29. Ra1 {[%clk 0:02:02]}  Qc2 {[%clk 0:01:17]} 30. Qc4 {[%clk 0:01:56]}  Ne7 {[%clk 0:00:58]} 31. Qxa4 {[%clk 0:01:47]}  Qf5 {[%clk 0:00:47]} 32. Qxa7 {[%clk 0:01:44]}  Nd5 {[%clk 0:00:47]} 33. Qb7 {[%clk 0:01:34]}  Nxc3 {[%clk 0:00:43]} 34. Ra8 {[%clk 0:01:31]}  Rxa8 {[%clk 0:00:42]} 35. Qxa8+ {[%clk 0:01:31]}  Kh7 {[%clk 0:00:43]} 36. Qc6 {[%clk 0:01:28]}  Qc2 {[%clk 0:00:40]} 37. Kh1 {[%clk 0:01:07]}  Qd2 {[%clk 0:00:34]} 38. Ra1 {[%clk 0:01:01]}  Nd1 {[%clk 0:00:31]} 39. Qe4+ {[%clk 0:00:57]}  g6 {[%clk 0:00:31]} 40. Qf3 {[%clk 0:00:49]}  Qe1+ {[%clk 0:00:27]} 41. Kh2 {[%clk 0:00:48]}  Qxe5+ {[%clk 0:00:28]} 42. g3 {[%clk 0:00:33]}  Qxa1 {[%clk 0:00:29]} 43. Qxf7+ {[%clk 0:00:31]}  Qg7 {[%clk 0:00:29]} 44. Qf3 {[%clk 0:00:31]}  Nb2 {[%clk 0:00:29]} 45. h4 {[%clk 0:00:30]}  h5 {[%clk 0:00:28]} 46. Qb3 {[%clk 0:00:26]}  Qf6 {[%clk 0:00:21]} 47. Kg2 {[%clk 0:00:26]}  Qc6+ {[%clk 0:00:21]} 48. Kh2 {[%clk 0:00:26]}  Nc4 {[%clk 0:00:21]} 49. Qc3 {[%clk 0:00:24]}  Qc5 {[%clk 0:00:16]} 50. Qf6 {[%clk 0:00:22]}  Ne5 {[%clk 0:00:13]} 51. Kh3 {[%clk 0:00:18]}  Qc8+ {[%clk 0:00:12]} 52. Kg2 {[%clk 0:00:17]}  Qc6+ {[%clk 0:00:12]} 53. Qxc6 {[%clk 0:00:17]}  Nxc6 {[%clk 0:00:13]} 54. Kf3 {[%clk 0:00:18]}  Kg7 {[%clk 0:00:13]} 55. Ke4 {[%clk 0:00:18]}  Kf6 {[%clk 0:00:13]} 56. f4 {[%clk 0:00:19]}  Ne7 {[%clk 0:00:13]} 57. Kf3 {[%clk 0:00:18]}  Nf5 {[%clk 0:00:12]} 58. g4 {[%clk 0:00:18]}  hxg4+ {[%clk 0:00:06]} 59. Kxg4 {[%clk 0:00:16]}  Nh6+ {[%clk 0:00:07]} 60. Kg3 {[%clk 0:00:16]}  Kf5 {[%clk 0:00:08]} 61. Kf3 {[%clk 0:00:16]}  Ng4 {[%clk 0:00:08]} 62. Kg3 {[%clk 0:00:17]}  Nf6 {[%clk 0:00:09]} 63. Kf3 {[%clk 0:00:18]}  Nh5 {[%clk 0:00:10]} 64. Ke3 {[%clk 0:00:17]}  Nxf4 {[%clk 0:00:10]} 65. Kf3 {[%clk 0:00:17]}  Nh5 {[%clk 0:00:10]} 0-1

[Event "January 2 Early 2024"]
[Site "https://www.chess.com"]
[Date "2024.01.02"]
[Round "5"]
[White "Tuleyeva-Aketayeva, Dana"]
[Black "Womacka, Mathias"]
[Result "0-1"]
[Board "119"]
[TimeControl "180+1"]
[WhiteFideId "13701932"]
[BlackFideId "4611390"]
[WhiteElo "2335"]
[BlackElo "2549"]
[WhiteTeam "KAZ"]
[BlackTeam "GER"]
[WhiteClock "0:00:00"]
[BlackClock "0:00:53"]

1. d4 {[%clk 0:02:26]}  Nf6 {[%clk 0:02:48]} 2. Nf3 {[%clk 0:02:26]}  e6 {[%clk 0:02:47]} 3. g3 {[%clk 0:02:26]}  c5 {[%clk 0:02:45]} 4. Bg2 {[%clk 0:02:27]}  cxd4 {[%clk 0:02:44]} 5. O-O {[%clk 0:02:26]}  Nc6 {[%clk 0:02:43]} 6. Nxd4 {[%clk 0:02:26]}  Qb6 {[%clk 0:02:42]} 7. Nb3 {[%clk 0:02:20]}  d5 {[%clk 0:02:41]} 8. Be3 {[%clk 0:02:15]}  Qc7 {[%clk 0:02:39]} 9. Nc3 {[%clk 0:02:14]}  Be7 {[%clk 0:02:33]} 10. Bf4 {[%clk 0:01:54]}  Qb6 {[%clk 0:02:27]} 11. Be3 {[%clk 0:01:53]}  Qd8 {[%clk 0:02:26]} 12. Bd4 {[%clk 0:01:29]}  O-O {[%clk 0:02:24]} 13. e4 {[%clk 0:01:28]}  e5 {[%clk 0:02:08]} 14. Bc5 {[%clk 0:01:18]}  d4 {[%clk 0:02:06]} 15. Bxe7 {[%clk 0:01:16]}  Nxe7 {[%clk 0:02:01]} 16. Nb1 {[%clk 0:00:56]}  Bg4 {[%clk 0:01:57]} 17. Qc1 {[%clk 0:00:49]}  Rc8 {[%clk 0:01:50]} 18. h3 {[%clk 0:00:46]}  Be6 {[%clk 0:01:47]} 19. Rd1 {[%clk 0:00:39]}  Qb6 {[%clk 0:01:42]} 20. Qd2 {[%clk 0:00:28]}  Rc7 {[%clk 0:01:33]} 21. Qg5 {[%clk 0:00:19]}  Ng6 {[%clk 0:01:21]} 22. Na3 {[%clk 0:00:18]}  a5 {[%clk 0:01:16]} 23. Qd2 {[%clk 0:00:15]}  a4 {[%clk 0:01:13]} 24. Nc1 {[%clk 0:00:13]}  Qxb2 {[%clk 0:01:12]} 25. Qa5 {[%clk 0:00:07]}  b6 {[%clk 0:01:08]} 26. Nd3 {[%clk 0:00:06]}  Qxa1 {[%clk 0:01:02]} 27. Rxa1 {[%clk 0:00:03]}  bxa5 {[%clk 0:00:59]} 28. Nb2 {[%clk 0:00:00]}  Rc3 {[%clk 0:00:53]} 0-1

[Event "January 2 Early 2024"]
[Site "https://www.chess.com"]
[Date "2024.01.02"]
[Round "5"]
[White "Poddubnyi, Viktor"]
[Black "Ismayil, Malak"]
[Result "0-1"]
[Board "120"]
[TimeControl "180+1"]
[WhiteFideId "4141989"]
[BlackFideId "13412604"]
[WhiteElo "2335"]
[BlackElo "2548"]
[WhiteTeam "RUS"]
[BlackTeam "AZE"]
[WhiteClock "0:00:00"]
[BlackClock "0:00:03"]

1. e4 {[%clk 0:03:00]}  e5 {[%clk 0:02:59]} 2. f4 {[%clk 0:02:59]}  d5 {[%clk 0:02:59]} 3. exd5 {[%clk 0:02:59]}  exf4 {[%clk 0:02:59]} 4. Nf3 {[%clk 0:02:58]}  Nf6 {[%clk 0:02:59]} 5. c4 {[%clk 0:02:58]}  c6 {[%clk 0:02:58]} 6. d4 {[%clk 0:02:59]}  cxd5 {[%clk 0:02:58]} 7. Bxf4 {[%clk 0:02:59]}  Bb4+ {[%clk 0:02:57]} 8. Nc3 {[%clk 0:03:00]}  Bxc3+ {[%clk 0:02:56]} 9. bxc3 {[%clk 0:02:59]}  O-O {[%clk 0:02:57]} 10. Be2 {[%clk 0:02:57]}  Re8 {[%clk 0:02:56]} 11. O-O {[%clk 0:02:56]}  dxc4 {[%clk 0:02:57]} 12. Bxc4 {[%clk 0:02:54]}  Be6 {[%clk 0:02:56]} 13. Bxe6 {[%clk 0:02:43]}  Rxe6 {[%clk 0:02:57]} 14. Rb1 {[%clk 0:02:43]}  b6 {[%clk 0:02:45]} 15. Ng5 {[%clk 0:02:12]}  Rc6 {[%clk 0:02:28]} 16. Qf3 {[%clk 0:01:43]}  Qc8 {[%clk 0:02:17]} 17. Bd2 {[%clk 0:01:30]}  Nbd7 {[%clk 0:02:13]} 18. Rbe1 {[%clk 0:01:22]}  h6 {[%clk 0:02:08]} 19. Ne4 {[%clk 0:01:21]}  Qf8 {[%clk 0:01:21]} 20. Ng3 {[%clk 0:01:02]}  Rac8 {[%clk 0:01:06]} 21. Nf5 {[%clk 0:00:59]}  Re6 {[%clk 0:01:00]} 22. Rxe6 {[%clk 0:00:17]}  fxe6 {[%clk 0:01:01]} 23. Ng3 {[%clk 0:00:17]}  Qd6 {[%clk 0:00:38]} 24. Nh5 {[%clk 0:00:15]}  Rf8 {[%clk 0:00:28]} 25. Nxf6+ {[%clk 0:00:13]}  Nxf6 {[%clk 0:00:29]} 26. Qe2 {[%clk 0:00:13]}  Re8 {[%clk 0:00:27]} 27. Re1 {[%clk 0:00:11]}  Nd7 {[%clk 0:00:18]} 28. Be3 {[%clk 0:00:10]}  e5 {[%clk 0:00:18]} 29. Qd3 {[%clk 0:00:10]}  exd4 {[%clk 0:00:14]} 30. cxd4 {[%clk 0:00:11]}  Nf6 {[%clk 0:00:12]} 31. Rf1 {[%clk 0:00:11]}  Ng4 {[%clk 0:00:09]} 32. Bf4 {[%clk 0:00:10]}  Qd5 {[%clk 0:00:09]} 33. h3 {[%clk 0:00:09]}  Nf6 {[%clk 0:00:07]} 34. Bxh6 {[%clk 0:00:10]}  Ne4 {[%clk 0:00:07]} 35. Be3 {[%clk 0:00:09]}  Nd6 {[%clk 0:00:04]} 36. Bf2 {[%clk 0:00:09]}  Qxa2 {[%clk 0:00:04]} 37. Re1 {[%clk 0:00:09]}  Rxe1+ {[%clk 0:00:03]} 38. Bxe1 {[%clk 0:00:10]}  Qd5 {[%clk 0:00:04]} 39. Bg3 {[%clk 0:00:10]}  Ne4 {[%clk 0:00:03]} 40. Be5 {[%clk 0:00:10]}  a5 {[%clk 0:00:03]} 41. Qf3 {[%clk 0:00:08]}  Nf6 {[%clk 0:00:02]} 42. Qg3 {[%clk 0:00:07]}  Qe6 {[%clk 0:00:02]} 43. Qd3 {[%clk 0:00:05]}  Nd5 {[%clk 0:00:02]} 44. Qb5 {[%clk 0:00:05]}  Qf7 {[%clk 0:00:01]} 45. Kh2 {[%clk 0:00:04]}  Qe6 {[%clk 0:00:02]} 46. Kg1 {[%clk 0:00:04]}  Kh7 {[%clk 0:00:02]} 47. Kh2 {[%clk 0:00:04]}  Qf7 {[%clk 0:00:03]} 48. Kg1 {[%clk 0:00:04]}  Qe6 {[%clk 0:00:03]} 49. Kh2 {[%clk 0:00:04]}  Kg6 {[%clk 0:00:03]} 50. Qc5 {[%clk 0:00:00]}  bxc5 {[%clk 0:00:03]} 0-1

[Event "January 2 Early 2024"]
[Site "https://www.chess.com"]
[Date "2024.01.02"]
[Round "5"]
[White "Jeet, Jain"]
[Black "Jahnz, Fabian"]
[Result "1-0"]
[Board "121"]
[TimeControl "180+1"]
[WhiteFideId "5073022"]
[BlackFideId "4653300"]
[WhiteElo "2547"]
[BlackElo "2298"]
[WhiteTeam "IND"]
[BlackTeam "GER"]
[WhiteClock "0:00:47"]
[BlackClock "0:00:02"]

1. c4 {[%clk 0:02:51]}  c6 {[%clk 0:03:00]} 2. d4 {[%clk 0:02:50]}  d5 {[%clk 0:03:00]} 3. Nf3 {[%clk 0:02:51]}  e6 {[%clk 0:02:58]} 4. g3 {[%clk 0:02:51]}  f5 {[%clk 0:02:55]} 5. Bg2 {[%clk 0:02:51]}  Nf6 {[%clk 0:02:56]} 6. O-O {[%clk 0:02:51]}  Bd6 {[%clk 0:02:56]} 7. Nc3 {[%clk 0:02:51]}  O-O {[%clk 0:02:56]} 8. b3 {[%clk 0:02:52]}  Nbd7 {[%clk 0:02:56]} 9. Bb2 {[%clk 0:02:51]}  Ne4 {[%clk 0:02:57]} 10. e3 {[%clk 0:02:49]}  Ndf6 {[%clk 0:02:56]} 11. Ne1 {[%clk 0:02:48]}  b6 {[%clk 0:02:50]} 12. Nd3 {[%clk 0:02:48]}  Bb7 {[%clk 0:02:50]} 13. f3 {[%clk 0:02:46]}  Nxc3 {[%clk 0:02:50]} 14. Bxc3 {[%clk 0:02:47]}  Rc8 {[%clk 0:02:48]} 15. Rc1 {[%clk 0:02:45]}  Qe7 {[%clk 0:02:47]} 16. Ne5 {[%clk 0:02:38]}  Nd7 {[%clk 0:02:45]} 17. Nxd7 {[%clk 0:02:32]}  Qxd7 {[%clk 0:02:46]} 18. e4 {[%clk 0:02:31]}  Qe7 {[%clk 0:02:34]} 19. Re1 {[%clk 0:02:19]}  fxe4 {[%clk 0:01:50]} 20. fxe4 {[%clk 0:02:17]}  dxc4 {[%clk 0:01:37]} 21. bxc4 {[%clk 0:02:16]}  e5 {[%clk 0:01:35]} 22. d5 {[%clk 0:02:13]}  Bc5+ {[%clk 0:01:35]} 23. Kh1 {[%clk 0:02:12]}  Rf2 {[%clk 0:01:32]} 24. Rf1 {[%clk 0:02:05]}  Rcf8 {[%clk 0:01:28]} 25. Qh5 {[%clk 0:02:05]}  Bd4 {[%clk 0:01:16]} 26. Bxd4 {[%clk 0:02:01]}  exd4 {[%clk 0:01:17]} 27. Rxf2 {[%clk 0:01:39]}  Rxf2 {[%clk 0:01:18]} 28. Qg4 {[%clk 0:01:35]}  d3 {[%clk 0:01:06]} 29. Rd1 {[%clk 0:01:30]}  d2 {[%clk 0:00:35]} 30. h4 {[%clk 0:01:19]}  cxd5 {[%clk 0:00:34]} 31. cxd5 {[%clk 0:01:17]}  h5 {[%clk 0:00:19]} 32. Qg5 {[%clk 0:01:03]}  Qxg5 {[%clk 0:00:14]} 33. hxg5 {[%clk 0:01:04]}  Ba6 {[%clk 0:00:11]} 34. Kg1 {[%clk 0:01:04]}  Re2 {[%clk 0:00:11]} 35. Bf3 {[%clk 0:00:59]}  Re1+ {[%clk 0:00:10]} 36. Kf2 {[%clk 0:00:59]}  Rxd1 {[%clk 0:00:05]} 37. Bxd1 {[%clk 0:01:00]}  Bd3 {[%clk 0:00:06]} 38. Ke3 {[%clk 0:01:00]}  Bb1 {[%clk 0:00:05]} 39. a3 {[%clk 0:00:58]}  Kf7 {[%clk 0:00:04]} 40. e5 {[%clk 0:00:58]}  Ba2 {[%clk 0:00:03]} 41. d6 {[%clk 0:00:51]}  g6 {[%clk 0:00:04]} 42. Kxd2 {[%clk 0:00:51]}  Ke6 {[%clk 0:00:04]} 43. Ke3 {[%clk 0:00:51]}  Bd5 {[%clk 0:00:04]} 44. Kd4 {[%clk 0:00:51]}  Bc6 {[%clk 0:00:05]} 45. Bb3+ {[%clk 0:00:48]}  Kd7 {[%clk 0:00:04]} 46. Bc2 {[%clk 0:00:48]}  Bf3 {[%clk 0:00:02]} 47. Bxg6 {[%clk 0:00:47]} 1-0